fUSD/lending_fUSD_20250517
["ID","MTS","AMOUNT","RATE_DAILY","PERIOD"]
[361321060,1747468253578,-1012.681176,0.0002,2]
[361321061,1747468253587,-308.656406,0.0002,2]
[361321062,1747468253597,-1012.681176,0.0002,2]
[361321063,1747468253606,-151.0,0.0002,2]
[361321064,1747468253615,-151.0,0.0002,2]
[361321065,1747468253624,-151.841595,0.0002,2]
[361321066,1747468253634,-151.0,0.0002,2]
[361321067,1747468253643,-151.0,0.0002,2]
[361321068,1747468253652,-151.0,0.0002,2]
[361321069,1747468253661,-151.0,0.0002,2]
[361321070,1747468253671,-151.0,0.0002,2]
[361321071,1747468253680,-227.748925,0.0002,2]
[361321072,1747468253690,-151.0,0.0002,2]
[361321073,1747468253699,-151.0,0.0002,2]
[361321074,1747468253709,-151.0,0.0002,2]
[361321075,1747468253719,-151.0,0.0002,2]
[361321076,1747468253729,-151.0,0.0002,2]
[361321077,1747468253739,-151.0,0.0002,2]
[361321078,1747468253748,-151.0,0.0002,2]
[361321079,1747468253758,-151.0,0.0002,2]
[361321080,1747468253768,-151.0,0.0002,2]
[361321081,1747468253778,-151.0,0.0002,2]
[361321082,1747468253788,-151.0,0.0002,2]
[361321083,1747468254103,-151.0,0.0002,2]
[361321084,1747468254113,-151.0,0.0002,2]
[361321085,1747468254122,-151.0,0.0002,2]
[361321086,1747468254131,-151.0,0.0002,2]
[361321087,1747468254140,-286.42876,0.0002,2]
[361321088,1747468254149,-189.142324,0.0002,2]
[361321089,1747468254158,-189.142324,0.0002,2]
[361321090,1747468254167,-189.142324,0.0002,2]
[361321091,1747468254177,-189.142324,0.0002,2]
[361321092,1747468254188,-189.142324,0.0002,2]
[361321093,1747468254197,-189.142319,0.0002,2]
[361321094,1747468254207,-151.0,0.0002,2]
[361321095,1747468254216,-625.78360023,0.0002,2]
[361321096,1747468254225,-151.0,0.0002,2]
[361321097,1747468254235,-151.0,0.0002,2]
[361321098,1747468254244,-151.0,0.0002,2]
[361321099,1747468254253,-151.0,0.0002,2]
[361321100,1747468254262,-151.0,0.0002,2]
[361321101,1747468254273,-151.0,0.0002,2]
[361321102,1747468254283,-151.0,0.0002,2]
[361321103,1747468254292,-151.0,0.0002,2]
[361321104,1747468254301,-151.0,0.0002,2]
[361321105,1747468254310,-152.4486,0.0002,2]
[361321106,1747468254320,-151.0,0.0002,2]
[361321107,1747468254329,-151.0,0.0002,2]
[361321108,1747468254338,-189.148134,0.0002,2]
[361321109,1747468254348,-189.148134,0.0002,2]
[361321110,1747468254357,-189.148134,0.0002,2]
[361321111,1747468254366,-189.148134,0.0002,2]
[361321112,1747468254375,-189.148134,0.0002,2]
[361321113,1747468254384,-189.148134,0.0002,2]
[361321114,1747468254394,-189.148134,0.0002,2]
[361321115,1747468254405,-189.148134,0.0002,2]
[361321116,1747468254416,-180.899911,0.0002,2]
[361321117,1747468254426,-180.899911,0.0002,2]
[361321118,1747468254436,-180.899911,0.0002,2]
[361321119,1747468254446,-180.899911,0.0002,2]
[361321120,1747468254456,-180.899911,0.0002,2]
[361321121,1747468254465,-180.899911,0.0002,2]
[361321122,1747468254474,-180.899911,0.0002,2]
[361321123,1747468254484,-180.899911,0.0002,2]
[361321124,1747468254494,-151.0,0.0002,2]
[361321125,1747468254507,-151.0,0.0002,2]
[361321126,1747468254517,-151.0,0.0002,2]
[361321127,1747468254527,-291.2175,0.0002,2]
[361321128,1747468254537,-1690.965831,0.0002,2]
[361321129,1747468254546,-1690.965831,0.0002,2]
[361321130,1747468254556,-1690.965831,0.0002,2]
[361321131,1747468254566,-1690.965831,0.0002,2]
[361321132,1747468254575,-1690.965831,0.0002,2]
[361321133,1747468254584,-1690.965831,0.0002,2]
[361321134,1747468254593,-1690.965831,0.0002,2]
[361321135,1747468254603,-151.0,0.0002,2]
[361321136,1747468254612,-1690.965831,0.0002,2]
[361321137,1747468254622,-151.0,0.0002,2]
[361321138,1747468254631,-151.0,0.0002,2]
[361321139,1747468254640,-151.0,0.0002,2]
[361321140,1747468254649,-151.0,0.0002,2]
[361321141,1747468254658,-151.0,0.0002,2]
[361321142,1747468254668,-204.717149,0.0002,2]
[361321143,1747468254677,-151.0,0.0002,2]
[361321144,1747468254686,-151.849229,0.0002,2]
[361321145,1747468254695,-151.0,0.0002,2]
[361321146,1747468254704,-151.0,0.0002,2]
[361321147,1747468254714,-570.986359,0.0002,2]
[361321148,1747468254723,-570.986359,0.0002,2]
[361321149,1747468254735,-570.986359,0.0002,2]
[361321150,1747468254745,-570.986359,0.0002,2]
[361321151,1747468254756,-570.986359,0.0002,2]
[361321152,1747468254768,-570.986359,0.0002,2]
[361321153,1747468254777,-570.986359,0.0002,2]
[361321154,1747468254787,-570.986359,0.0002,2]
[361321155,1747468254796,-153.196447,0.0002,2]
[361321156,1747468254805,-153.196447,0.0002,2]
[361321157,1747468254815,-153.196447,0.0002,2]
[361321158,1747468254824,-153.196447,0.0002,2]
[361321159,1747468254833,-239.72,0.0002,2]
[361321160,1747468254843,-151.0,0.0002,2]
[361321161,1747468254852,-151.0,0.0002,2]
[361321162,1747468254868,-186.683465,0.0002,2]
[361321163,1747468254878,-186.683465,0.0002,2]
[361321164,1747468254887,-1059.84616,0.0002,2]
[361321165,1747468254896,-1059.84616,0.0002,2]
[361321166,1747468254907,-186.683465,0.0002,2]
[361321167,1747468254916,-186.683465,0.0002,2]
[361321168,1747468254925,-1059.84616,0.0002,2]
[361321169,1747468254934,-1059.84616,0.0002,2]
[361321170,1747468254944,-151.0,0.0002,2]
[361321171,1747468254955,-151.0,0.0002,2]
[361321172,1747468254964,-151.0,0.0002,2]
[361321173,1747468254973,-151.0,0.0002,2]
[361321174,1747468254983,-151.0,0.0002,2]
[361321175,1747468254992,-151.0,0.0002,2]
[361321176,1747468255002,-151.380239,0.0002,2]
[361321177,1747468255012,-381.089106,0.0002,2]
[361321178,1747468255025,-381.089106,0.0002,2]
[361321179,1747468255034,-381.089106,0.0002,2]
[361321180,1747468255044,-381.089106,0.0002,2]
[361321181,1747468255053,-151.0,0.0002,2]
[361321182,1747468255063,-151.0,0.0002,2]
[361321183,1747468255072,-151.0,0.0002,2]
[361321184,1747468255081,-151.0,0.0002,2]
[361321185,1747468255091,-823.205079,0.0002,2]
[361321186,1747468255100,-823.205079,0.0002,2]
[361321187,1747468255109,-823.205079,0.0002,2]
[361321188,1747468255119,-823.205079,0.0002,2]
[361321189,1747468255128,-823.205079,0.0002,2]
[361321190,1747468255137,-823.205079,0.0002,2]
[361321191,1747468255147,-823.205079,0.0002,2]
[361321192,1747468255156,-823.205079,0.0002,2]
[361321193,1747468255165,-241.621944,0.0002,2]
[361321194,1747468255174,-241.621944,0.0002,2]
[361321195,1747468255184,-151.679656,0.0002,2]
[361321196,1747468255194,-151.679656,0.0002,2]
[361321197,1747468255203,-151.679656,0.0002,2]
[361321198,1747468255212,-151.679656,0.0002,2]
[361321199,1747468255222,-241.621944,0.0002,2]
[361321200,1747468255231,-241.621944,0.0002,2]
[361321201,1747468255241,-466.482273,0.0002,2]
[361321202,1747468255251,-466.482273,0.0002,2]
[361321203,1747468255261,-466.482273,0.0002,2]
[361321204,1747468255271,-466.482273,0.0002,2]
[361321205,1747468255281,-380.073521,0.0002,2]
[361321206,1747468255291,-380.073521,0.0002,2]
[361321207,1747468255300,-151.0,0.0002,2]
[361321208,1747468255310,-151.30198,0.0002,2]
[361321209,1747468255319,-380.073521,0.0002,2]
[361321210,1747468255329,-380.073521,0.0002,2]
[361321211,1747468255338,-1731.140747,0.0002,2]
[361321212,1747468255348,-1731.140747,0.0002,2]
[361321213,1747468255357,-1731.140747,0.0002,2]
[361321214,1747468255367,-151.0,0.0002,2]
[361321215,1747468255378,-151.0,0.0002,2]
[361321216,1747468255388,-296.105828,0.0002,2]
[361321217,1747468255397,-151.0,0.0002,2]
[361321218,1747468255407,-151.0,0.0002,2]
[361321219,1747468255417,-151.0,0.0002,2]
[361321220,1747468255426,-151.0,0.0002,2]
[361321221,1747468255437,-151.0,0.0002,2]
[361321222,1747468255446,-151.0,0.0002,2]
[361321223,1747468255457,-151.0,0.0002,2]
[361321224,1747468255467,-151.0,0.0002,2]
[361321225,1747468255477,-151.0,0.0002,2]
[361321226,1747468255486,-151.0,0.0002,2]
[361321227,1747468255496,-151.0,0.0002,2]
[361321228,1747468255505,-196.134542,0.0002,2]
[361321229,1747468255515,-151.0,0.0002,2]
[361321230,1747468255526,-151.0,0.0002,2]
[361321231,1747468255535,-243.330771,0.0002,2]
[361321232,1747468255544,-180.055288,0.0002,2]
[361321233,1747468255554,-180.055288,0.0002,2]
[361321234,1747468255563,-180.055288,0.0002,2]
[361321235,1747468255573,-180.055288,0.0002,2]
[361321236,1747468255582,-376.402952,0.0002,2]
[361321237,1747468255591,-376.402952,0.0002,2]
[361321238,1747468255601,-376.402952,0.0002,2]
[361321239,1747468255611,-376.402952,0.0002,2]
[361321240,1747468255620,-151.0,0.0002,2]
[361321241,1747468255630,-151.0,0.0002,2]
[361321242,1747468255639,-293.13302,0.0002,2]
[361321243,1747468255649,-293.13302,0.0002,2]
[361321244,1747468255658,-293.13302,0.0002,2]
[361321245,1747468255668,-151.0,0.0002,2]
[361321246,1747468255677,-151.0,0.0002,2]
[361321247,1747468255687,-293.13302,0.0002,2]
[361321248,1747468255696,-293.13302,0.0002,2]
[361321249,1747468255706,-293.13302,0.0002,2]
[361321250,1747468255716,-151.0,0.0002,2]
[361321251,1747468255726,-185.707296,0.0002,2]
[361321252,1747468255735,-10000.0,0.0002,2]
[361321253,1747468255745,-10000.0,0.0002,2]
[361321254,1747468255755,-10000.0,0.0002,2]
[361321255,1747468255765,-10000.0,0.0002,2]
[361321256,1747468255778,-10000.0,0.0002,2]
[361321257,1747468255788,-10000.0,0.0002,2]
[361321258,1747468255798,-4463.750758,0.0002,2]
[361321259,1747468255807,-4463.750758,0.0002,2]
[361321260,1747468255817,-4463.750758,0.0002,2]
[361321261,1747468255827,-4463.750758,0.0002,2]
[361321262,1747468255838,-391.670665,0.0002,2]
[361321263,1747468255847,-391.670665,0.0002,2]
[361321264,1747468255860,-391.670665,0.0002,2]
[361321265,1747468255871,-391.670665,0.0002,2]
[361321266,1747468255880,-443.232687,0.0002,2]
[361321267,1747468255891,-443.232687,0.0002,2]
[361321268,1747468255900,-443.232687,0.0002,2]
[361321269,1747468255910,-443.232687,0.0002,2]
[361321270,1747468255919,-4000.0,0.0002,2]
[361321271,1747468255929,-4000.0,0.0002,2]
[361321272,1747468255940,-4000.0,0.0002,2]
[361321273,1747468255951,-4000.0,0.0002,2]
[361321274,1747468255960,-1419.953396,0.0002,2]
[361321275,1747468255969,-1419.953396,0.0002,2]
[361321276,1747468255979,-1419.953396,0.0002,2]
[361321277,1747468255988,-1419.953396,0.0002,2]
[361321278,1747468255997,-159.0,0.0002,2]
[361321279,1747468256007,-151.0,0.0002,2]
[361321280,1747468256016,-151.0,0.0002,2]
[361321281,1747468256027,-151.0,0.0002,2]
[361321282,1747468256036,-151.0,0.0002,2]
[361321283,1747468256046,-174.676059,0.0002,2]
[361321284,1747468256055,-174.676059,0.0002,2]
[361321285,1747468256064,-640.494138,0.0002,2]
[361321286,1747468256073,-640.494138,0.0002,2]
[361321287,1747468256083,-174.676059,0.0002,2]
[361321288,1747468256092,-174.676059,0.0002,2]
[361321289,1747468256101,-640.494138,0.0002,2]
[361321290,1747468256111,-640.494138,0.0002,2]
[361321291,1747468256120,-2236.945351,0.0002,2]
[361321292,1747468256130,-2236.945351,0.0002,2]
[361321293,1747468256139,-2236.945351,0.0002,2]
[361321294,1747468256149,-2236.945351,0.0002,2]
[361321295,1747468256158,-151.0,0.0002,2]
[361321296,1747468256168,-151.0,0.0002,2]
[361321297,1747468256178,-156.053829,0.0002,2]
[361321298,1747468256188,-156.053829,0.0002,2]
[361321299,1747468256197,-156.053829,0.0002,2]
[361321300,1747468256207,-156.053829,0.0002,2]
[361321301,1747468256217,-200.0,0.0002,2]
[361321302,1747468256226,-151.0,0.0002,2]
[361321303,1747468256237,-151.0,0.0002,2]
[361321304,1747468256249,-151.0,0.0002,2]
[361321305,1747468256259,-151.0,0.0002,2]
[361321306,1747468256268,-4000.0,0.0002,4]
[361321307,1747468256279,-162.801857,0.0002,2]
[361321308,1747468256289,-9001.77719482,0.0002001,2]
[361321309,1747468256298,-4963.89507234,0.0002001,2]
[361321310,1747468256308,-5772.0,0.0002001,2]
[361321311,1747468256318,-151.0,0.0002001,2]
[361321312,1747468256328,-151.0,0.0002001,2]
[361321313,1747468256337,-151.0,0.0002001,2]
[361321314,1747468256347,-151.0,0.0002001,2]
[361321315,1747468256357,-151.0,0.0002001,2]
[361321316,1747468256366,-151.480585,0.0002001,2]
[361321317,1747468256379,-308.656406,0.0002001,2]
[361321318,1747468256389,-308.656406,0.0002001,2]
[361321319,1747468256399,-162.380719,0.00020011,2]
[361321320,1747468256408,-719.04747942,0.00020011,2]
[361321321,1747468256418,-223.0315306,0.00020011,2]
[361321322,1747468256428,-155.0,0.00020012,2]
[361321323,1747468256437,-1199.20597015,0.00020013,2]
[361321324,1747468256542,-151.0,0.00020013,2]
[361321325,1747468256553,-801.85129955,0.00020013,2]
[361321326,1747468256564,-1304.175,0.00020051,2]
[361321327,1747468256573,-933.0,0.00020051,2]
[361321328,1747468256583,-624.0,0.00020051,2]
[361321329,1747468256595,-799.0,0.00020051,2]
[361321330,1747468256605,-1254.0,0.00020051,2]
[361321331,1747468256615,-585.0,0.00020051,2]
[361321332,1747468256625,-1458.0,0.00020051,2]
[361321333,1747468256634,-919.0,0.00020051,2]
[361321334,1747468256644,-553.0,0.00020051,2]
[361321335,1747468256654,-4039.0,0.00020051,2]
[361321336,1747468256665,-6827.0,0.00020051,2]
[361321337,1747468256675,-879.0,0.00020051,2]
[361321338,1747468256685,-154.0,0.00020051,2]
[361321339,1747468256695,-664.977,0.00020051,2]
[361321340,1747468256705,-241.051793,0.000201,2]
[361321341,1747468256715,-1675.24130392,0.0002015,2]
[361321342,1747468256727,-234.56,0.00020187,2]
[361321343,1747468256736,-150.0,0.00020187,2]
[361321344,1747468256747,-500.0,0.000202,2]
[361321345,1747468256756,-500.0,0.000202,2]
[361321346,1747468256765,-500.0,0.000202,2]
[361321347,1747468256775,-500.0,0.000202,2]
[361321348,1747468256784,-500.0,0.000202,2]
[361321349,1747468256794,-502.0,0.000202,2]
[361321350,1747468256803,-162.380719,0.00020274,2]
[361321351,1747468256812,-4000.0,0.0002029,2]
[361321352,1747468256821,-5560.0,0.000203,5]
[361321353,1747468256831,-1000.0,0.000205,2]
[361321354,1747468256843,-2000.0,0.000205,2]
[361321355,1747468256853,-150.0,0.00020548,2]
[361321356,1747468256867,-209.857179,0.00020548,2]
[361321357,1747468256877,-20734.48,0.00020548,2]
[361321358,1747468256886,-184.64,0.00020548,2]
[361321359,1747468256895,-7324.73138746,0.00020548,2]
[361321360,1747468256905,-151.0,0.00020548,2]
[361321361,1747468256915,-153.196447,0.00020548,2]
[361321362,1747468256924,-153.196447,0.00020548,2]
[361321363,1747468256934,-183.795503,0.00020548,2]
[361321364,1747468256945,-186.683465,0.00020548,2]
[361321365,1747468256955,-186.683465,0.00020548,2]
[361321366,1747468256965,-151.0,0.00020548,2]
[361321367,1747468256974,-151.0,0.00020548,2]
[361321368,1747468256984,-381.089106,0.00020548,2]
[361321369,1747468256993,-381.089106,0.00020548,2]
[361321370,1747468257002,-151.0,0.00020548,2]
[361321371,1747468257012,-151.0,0.00020548,2]
[361321372,1747468257022,-269.113465,0.00020548,2]
[361321373,1747468257032,-151.0,0.00020548,2]
[361321374,1747468257041,-151.0,0.00020548,2]
[361321375,1747468257052,-151.0,0.00020548,2]
[361321376,1747468257062,-376.402952,0.00020548,2]
[361321377,1747468257072,-376.402952,0.00020548,2]
[361321378,1747468257081,-151.0,0.00020548,2]
[361321379,1747468257090,-159.419736,0.00020548,2]
[361321380,1747468257099,-10000.0,0.00020548,2]
[361321381,1747468257108,-10000.0,0.00020548,2]
[361321382,1747468257118,-10000.0,0.00020548,2]
[361321383,1747468257127,-4463.750758,0.00020548,2]
[361321384,1747468257136,-4463.750758,0.00020548,2]
[361321385,1747468257145,-391.670665,0.00020548,2]
[361321386,1747468257154,-391.670665,0.00020548,2]
[361321387,1747468257164,-443.232687,0.00020548,2]
[361321388,1747468257172,-443.232687,0.00020548,2]
[361321389,1747468257181,-1419.953396,0.00020548,2]
[361321390,1747468257191,-1248.74466238,0.00020548,2]
[361321391,1747468257682,-171.20873362,0.00020548,2]
[361321392,1747468257691,-151.0,0.00020548,2]
[361321393,1747468257701,-59.29126638,0.00020548,2]
[361321394,1747468258490,-91.70873362,0.00020548,2]
[361321395,1747468258500,-174.676059,0.00020548,2]
[361321396,1747468258509,-640.494138,0.00020548,2]
[361321397,1747468258518,-174.676059,0.00020548,2]
[361321398,1747468258530,-640.494138,0.00020548,2]
[361321399,1747468258539,-2236.945351,0.00020548,2]
[361321400,1747468258549,-2236.945351,0.00020548,2]
[361321401,1747468258559,-151.0,0.00020548,2]
[361321402,1747468258569,-156.053829,0.00020548,2]
[361321403,1747468258578,-156.053829,0.00020548,2]
[361321404,1747468258587,-151.0,0.00020548,2]
[361321405,1747468258596,-151.0,0.00020548,2]
[361321406,1747468258605,-1243.57659104,0.00020561,2]
[361321407,1747468258614,-151.0,0.00020561,2]
[361321408,1747468258624,-831.51979763,0.00020561,2]
[361321409,1747468258633,-151.679656,0.00020561,2]
[361321410,1747468258642,-151.679656,0.00020561,2]
[361321411,1747468258652,-151.0,0.00020561,2]
[361321412,1747468258661,-12044.04675229,0.00020651,2]
[361321413,1747468258671,-150.0,0.00020692,2]
[361321414,1747468258681,-3223.60981477,0.00020693,2]
[361321415,1747468258690,-35223.6767157,0.000207,2]
[361321416,1747468258702,-80914.83084146,0.000207,2]
[361321417,1747468258711,-21941.91082392,0.000207,2]
[361321418,1747468258720,-787.971194,0.000207,2]
[361321419,1747468258730,-787.971194,0.000207,2]
[361321420,1747468258739,-151.0,0.000207,2]
[361321421,1747468258748,-151.0,0.000207,2]
[361321422,1747468258757,-514.242783,0.000207,2]
[361321423,1747468258767,-514.242783,0.000207,2]
[361321424,1747468258776,-211.676946,0.000207,2]
[361321425,1747468258785,-211.676946,0.000207,2]
[361321426,1747468258794,-1012.681176,0.000207,2]
[361321427,1747468258803,-308.656406,0.000207,2]
[361321428,1747468258812,-1012.681176,0.000207,2]
[361321429,1747468258821,-308.656406,0.000207,2]
[361321430,1747468258830,-151.0,0.000207,2]
[361321431,1747468258840,-151.0,0.000207,2]
[361321432,1747468258849,-151.0,0.000207,2]
[361321433,1747468258859,-151.0,0.000207,2]
[361321434,1747468258870,-189.148134,0.000207,2]
[361321435,1747468258879,-189.14813,0.000207,2]
[361321436,1747468258888,-180.899911,0.000207,2]
[361321437,1747468258898,-180.899903,0.000207,2]
[361321438,1747468258907,-151.0,0.000207,2]
[361321439,1747468258916,-1690.965831,0.000207,2]
[361321440,1747468258925,-151.0,0.000207,2]
[361321441,1747468258934,-1690.965835,0.000207,2]
[361321442,1747468258945,-151.0,0.000207,2]
[361321443,1747468258954,-151.0,0.000207,2]
[361321444,1747468258963,-570.986359,0.000207,2]
[361321445,1747468258972,-570.986362,0.000207,2]
[361321446,1747468258981,-1059.84616,0.000207,2]
[361321447,1747468258991,-1059.84616,0.000207,2]
[361321448,1747468259001,-151.0,0.000207,2]
[361321449,1747468259010,-151.0,0.000207,2]
[361321450,1747468259019,-823.205079,0.000207,2]
[361321451,1747468259030,-823.205073,0.000207,2]
[361321452,1747468259039,-241.621944,0.000207,2]
[361321453,1747468259048,-241.621944,0.000207,2]
[361321454,1747468259058,-466.482273,0.000207,2]
[361321455,1747468259067,-466.482273,0.000207,2]
[361321456,1747468259076,-380.073521,0.000207,2]
[361321457,1747468259086,-380.073521,0.000207,2]
[361321458,1747468259095,-1731.140747,0.000207,2]
[361321459,1747468259104,-1731.140747,0.000207,2]
[361321460,1747468259113,-180.055288,0.000207,2]
[361321461,1747468259122,-180.055288,0.000207,2]
[361321462,1747468259131,-293.13302,0.000207,2]
[361321463,1747468259140,-293.13302,0.000207,2]
[361321464,1747468259149,-1000.0,0.00020716,2]
[361321465,1747468259159,-8000.4,0.00020822,2]
[361321466,1747468259167,-151.0,0.00020822,2]
[361321467,1747468259176,-168.3888056,0.00020822,2]
[361321468,1747468259186,-224.54,0.00020849,2]
[361321469,1747468259195,-151.0,0.0002085,2]
[361321470,1747468259204,-1000.0,0.00020899,2]
[361321471,1747468259214,-1900.0,0.000209,7]
[361321472,1747468259223,-1000.0,0.00020931,2]
[361321473,1747468259232,-1000.0,0.00020981,2]
[361321474,1747468259242,-20000.0,0.00021,2]
[361321475,1747468259251,-1155.57320738,0.00021,2]
[361321476,1747468259261,-190.7216251,0.00021,2]
[361321477,1747468259270,-3317.63090609,0.00021,5]
[361321478,1747468259280,-501.88872508,0.00021,2]
[361321479,1747468259396,-1000.0,0.00021,2]
[361321480,1747468259416,-5078.53,0.00021,2]
[361321481,1747468259427,-151.0,0.00021,2]
[361321482,1747468259437,-151.0,0.00021,2]
[361321483,1747468259446,-151.0,0.00021,2]
[361321484,1747468259455,-233.87645,0.00021,2]
[361321485,1747468259465,-4000.0,0.00021,4]
[361321486,1747468259474,-1000.0,0.00021039,2]
[361321487,1747468259484,-1000.0,0.00021095,2]
[361321488,1747468259494,-151.0,0.00021096,2]
[361321489,1747468259503,-12860.95301521,0.000211,2]
[361321490,1747468259516,-432.74780958,0.000211,2]
[361321491,1747468259527,-415.13094235,0.00021109,2]
[361321492,1747468259536,-151.0,0.00021109,2]
[361321493,1747468259546,-862.28603014,0.00021109,2]
[361321494,1747468259556,-1000.0,0.00021154,2]
[361321495,1747468259565,-150.0,0.00021197,2]
[361321496,1747468259575,-1000.0,0.00021218,2]
[361321497,1747468259583,-1000.0,0.00021309,2]
[361321498,1747468259593,-1000.0,0.00021331,2]
[361321499,1747468259602,-2169.4948149,0.0002137,2]
[361321500,1747468259650,-729.10280953,0.0002137,2]
[361321501,1747468259951,-1275.60518297,0.0002137,2]
[361321503,1747468589432,239.38,0.00027397,120]
[361321519,1747469236109,-223.38,0.00013699,2]
[361321520,1747469236133,-9.46177769,0.00013699,2]
[361321521,1747469239426,-190.53822231,0.00013699,2]
[361321522,1747469239448,-80.62125685,0.000137,2]
[361321525,1747469336280,332.54,0.00025038,120]
[361321526,1747469336469,332.54,0.00027314,120]
[361321527,1747469345086,-163.9371244,0.000137,2]
[361321528,1747469349116,-899.47472917,0.000137,2]
[361321529,1747469349137,-200.0,0.00013921,2]
[361321530,1747469349159,-200.0,0.00014142,2]
[361321531,1747469349180,-200.0,0.00014461,2]
[361321532,1747469349200,-170.59159007,0.00014647,2]
[361321533,1747469349220,-211.58525651,0.00014746,2]
[361321537,1747469373527,450.0,0.0001,2]
[361321538,1747469374660,500.0,0.00012,2]
[361321544,1747469432493,-38.41474349,0.00014746,2]
[361321545,1747469432504,-200.0,0.00014907,2]
[361321548,1747469432514,-200.0,0.00015068,2]
[361321550,1747469432524,-200.0,0.0001507,2]
[361321552,1747469432535,-200.0,0.00015138,2]
[361321554,1747469432545,-250.0,0.00015287,2]
[361321556,1747469432558,-137.23521087,0.00015518,2]
[361321558,1747469432572,-803.99333513,0.00015518,2]
[361321561,1747469432582,-170.23,0.00015596,2]
[361321563,1747469432593,-62.67148494,0.00016221,2]
[361321565,1747469432607,-137.32851506,0.00016221,2]
[361321567,1747469432617,-1200.0,0.00016318,2]
[361321569,1747469432629,-300.0,0.00016318,2]
[361321571,1747469432643,-600.25320574,0.00016319,2]
[361321586,1747469432719,-6241.95729117,0.00016319,2]
[361321590,1747469432731,-3285.93024673,0.00016319,2]
[361321593,1747469432744,-922.68565199,0.00016319,2]
[361321597,1747469432755,-638.61,0.000167,2]
[361321599,1747469432766,-2469.98529575,0.00016967,2]
[361321601,1747469432777,-168.4,0.00017327,2]
[361321603,1747469432788,-611.92,0.00017403,2]
[361321605,1747469432800,-4039.0,0.00017618,2]
[361321608,1747469432811,-6827.0,0.00017618,2]
[361321610,1747469432822,-154.0,0.00017618,2]
[361321612,1747469432833,-1000.0,0.00017787,2]
[361321614,1747469432844,-405.0,0.00017787,2]
[361321616,1747469432855,-150.0,0.00017788,2]
[361321618,1747469432868,-794.0,0.00017788,2]
[361321620,1747469432880,-553.0,0.00017788,2]
[361321622,1747469432893,-1458.0,0.00017788,2]
[361321624,1747469432904,-919.0,0.00017788,2]
[361321627,1747469432915,-582.0,0.00017788,2]
[361321629,1747469432925,-1254.0,0.00017788,2]
[361321631,1747469432935,-1148.0,0.00017788,2]
[361321633,1747469432946,-5940.0,0.00017788,2]
[361321635,1747469432956,-411.54668075,0.000179,2]
[361321645,1747469433045,-989.88844913,0.000179,2]
[361321648,1747469433057,-932.82828984,0.00017925,2]
[361321650,1747469433070,-516.01031607,0.00017925,2]
[361321652,1747469433083,-231.16139409,0.00017925,2]
[361321655,1747469433094,-151.0,0.00018178,2]
[361321657,1747469433105,-151.0,0.00018209,2]